bitfinex/quotes_ETHUSD_20260313
["timestamp","ask_amount","ask_price","bid_price","bid_amount"]
[1773391521052,0.54949055,2109.2,2109.0,0.002]
[1773391521577,0.54949055,2109.2,2108.8,0.001]
[1773391521775,0.54949055,2109.2,2108.5,0.001]
[1773391522072,0.54949055,2109.2,2107.9,0.001]
[1773391522073,0.54899055,2108.6,2107.9,0.001]
[1773391522281,0.54899055,2108.6,2108.0,0.003]
[1773391523052,0.54899055,2108.4,2108.0,0.003]
[1773391524058,0.54899055,2108.3,2107.6,0.001]
[1773391524262,0.54899055,2108.0,2107.0,1.563]
[1773391524953,0.54899055,2107.8,2107.0,1.563]
[1773391525382,0.54899055,2107.8,2107.1,1.594]
[1773391525759,0.54899055,2107.6,2106.8,0.001]
[1773391527058,0.54899055,2107.6,2106.8,0.04846535]
[1773391527278,1.18623962,2107.5,2106.8,0.04846535]
[1773391527481,0.54899055,2107.4,2106.8,0.04846535]
[1773391527687,0.54899055,2107.4,2106.8,0.001]
[1773391528182,0.54899055,2107.4,2106.8,0.04846535]
[1773391528381,0.54899055,2107.4,2106.8,1.23508939]
[1773391528568,0.54899055,2107.4,2106.8,1.23509782]
[1773391529494,1.1863522,2107.3,2106.8,0.001]
[1773391529816,0.54899055,2107.2,2106.8,0.001]
[1773391529971,0.54899055,2107.2,2106.7,1.52201]
[1773391530871,4.74525997,2107.4,2106.8,1.99739405]
[1773391530872,1.73532909,2107.4,2106.8,1.99739405]
[1773391531096,0.54899055,2107.4,2106.8,1.99739405]
[1773391531506,0.54899055,2107.3,2106.7,1.52201]
[1773391531714,0.54899055,2107.3,2106.8,0.04746535]
[1773391533609,0.54899055,2107.1,2106.7,1.592]
[1773391533799,0.54899055,2107.1,2106.8,0.04746535]
[1773391534329,0.54899055,2107.1,2106.7,1.592]
[1773391535090,0.52526238,2107.1,2106.7,1.592]
[1773391535612,1.71177553,2107.1,2106.7,1.592]
[1773391536426,0.53712646,2107.0,2106.7,1.592]
[1773391537705,0.53712646,2106.8,2106.7,1.592]
[1773391538898,0.53712646,2107.0,2106.7,1.592]
[1773391539222,0.53712646,2106.9,2106.7,1.592]
[1773391539817,0.53712646,2106.8,2106.7,1.592]
[1773391540907,0.51258383,2107.1,2106.7,1.592]
[1773391541112,0.51258383,2107.0,2106.7,1.592]
[1773391541299,0.57190988,2107.0,2106.7,1.592]
[1773391541696,1.18657743,2106.9,2106.7,1.592]
[1773391542019,1.69916126,2106.9,2106.7,1.592]
[1773391542236,1.69916126,2106.9,2106.6,0.001]
[1773391543020,0.51258383,2106.8,2106.6,0.001]
[1773391543403,1.75847246,2107.0,2106.6,0.001]
[1773391543930,0.51258383,2106.8,2106.6,0.001]
[1773391544504,0.51258383,2106.8,2106.4,1.59]
[1773391545105,0.51258383,2106.8,2106.1,0.00692777]
[1773391545304,0.51258383,2106.8,2106.1,1.24142926]
[1773391545814,0.51208383,2106.6,2105.8,1.19305869]
[1773391546020,0.51208383,2106.6,2105.9,0.00586143]
[1773391546200,0.51208383,2106.6,2105.2,1.630536]
[1773391546525,0.51208383,2106.4,2105.3,0.00586143]
[1773391546694,0.51208383,2106.4,2105.5,0.0045878]
[1773391547257,0.51208383,2106.3,2105.0,4.7501425]
[1773391547412,0.51208383,2106.3,2105.2,1.565]
[1773391547600,0.51208383,2106.3,2105.3,1.61349916]
[1773391548146,0.51208383,2106.3,2105.3,0.04749916]
[1773391548147,0.50932845,2106.0,2105.3,0.04749916]
[1773391548316,0.50932845,2106.0,2105.2,0.04750142]
[1773391548567,0.50932845,2106.0,2103.4,0.1672055]
[1773391548826,0.50932845,2106.0,2104.2,0.51220392]
[1773391548827,0.50932845,2105.2,2104.2,0.51220392]
[1773391549001,0.50932845,2105.5,2104.5,0.51220392]
[1773391549406,0.50932845,2105.5,2104.3,1.556]
[1773391550006,0.50932845,2105.3,2104.2,4.40247333]
[1773391550211,0.50932845,2105.3,2104.4,1.56]
[1773391552134,1.6651411,2105.2,2104.4,1.56]
[1773391552363,1.6651411,2105.2,2104.3,1.565]
[1773391552364,0.47760548,2105.0,2104.3,1.565]
[1773391552739,0.47760548,2105.0,2103.9,0.5072069]
[1773391553058,0.47760548,2105.0,2104.0,1.566]
[1773391553357,3.64737731,2105.1,2104.1,0.5072069]
[1773391553358,1.64502076,2105.1,2104.1,0.5072069]
[1773391553529,1.64502076,2105.1,2104.2,0.5072069]
[1773391554357,1.18764845,2105.0,2104.3,0.5072069]
[1773391554658,1.66525393,2105.0,2104.4,1.569]
[1773391554957,0.47760548,2104.9,2104.4,1.569]
[1773391555159,0.47760548,2104.9,2104.1,2.66081785]
[1773391555334,0.47760548,2104.9,2104.2,1.57]
[1773391555878,1.18764845,2105.0,2104.3,0.5072069]
[1773391556435,1.18764845,2105.0,2104.4,0.5072069]
[1773391557134,2.83265746,2105.1,2104.4,0.5072069]
[1773391558865,2.83265746,2105.1,2104.8,2.41446716]
[1773391558866,1.44155383,2105.1,2104.8,2.41446716]
[1773391559068,1.73518552,2105.8,2104.9,0.41211061]
[1773391559271,0.54798826,2105.8,2105.1,0.41211061]
[1773391559569,0.05936268,2105.7,2105.2,1.574]
[1773391559891,1.02559374,2105.8,2105.2,1.574]
[1773391560099,0.54798826,2105.8,2105.2,1.574]
[1773391560263,0.54798826,2105.8,2105.2,1.98481787]
[1773391560470,0.54798826,2105.8,2105.3,0.41081787]
[1773391560693,1.18714864,2105.9,2105.3,0.41081787]
[1773391560903,0.53696534,2105.8,2105.0,1.575]
[1773391561907,1.18712144,2106.0,2105.1,0.45626986]
[1773391562200,5.22577201,2106.1,2104.8,2.00235655]
[1773391562201,0.47760548,2105.8,2104.8,0.45626986]
[1773391562501,0.47760548,2105.8,2104.9,2.03126986]
[1773391562678,0.05936268,2105.7,2105.0,1.575]
[1773391562877,1.18731003,2105.6,2105.0,2.76260145]
[1773391563380,4.80847238,2105.7,2105.0,2.76260145]
[1773391563381,1.24661994,2105.7,2105.0,2.76260145]
[1773391563578,1.18725726,2105.7,2105.0,3.21746139]
[1773391564196,0.002,2105.6,2105.0,3.21750761]
[1773391564392,0.002,2105.6,2105.0,2.02985994]
[1773391564594,0.002,2105.6,2105.0,3.21748651]
[1773391565776,0.002,2105.6,2105.0,2.76262657]
[1773391565986,1.1891997,2105.8,2105.1,0.4506407]
[1773391566400,1.18920156,2105.8,2105.1,0.4506407]
[1773391566798,1.66680704,2105.8,2105.0,2.76262657]
[1773391566970,1.18731003,2105.6,2105.1,1.577]
[1773391567173,1.18731003,2105.6,2105.1,2.76458946]
[1773391567425,0.05936268,2105.7,2105.2,0.44723784]
[1773391567635,1.18727944,2105.7,2105.1,2.76458946]
[1773391568207,1.18727944,2105.7,2105.1,1.577]
[1773391568431,1.18727944,2105.7,2105.1,2.76459143]
[1773391568639,1.18727944,2105.7,2105.1,3.21048672]
[1773391568821,1.18923447,2105.8,2105.1,3.21048672]
[1773391569131,0.002,2105.8,2105.2,0.44449587]
[1773391571026,0.002,2105.8,2105.3,1.18747921]
[1773391571202,0.002,2105.8,2105.3,1.62918171]
[1773391571830,1.1870928,2106.0,2105.4,0.44030855]
[1773391572210,1.24644702,2106.0,2105.4,0.44030855]
[1773391572523,0.47760548,2105.9,2105.1,3.20287195]
[1773391572843,0.47760548,2105.9,2105.2,2.01491645]
[1773391573336,1.18719726,2105.8,2105.2,3.20240957]
[1773391574935,1.18719726,2105.8,2105.2,1.579]
[1773391574936,0.53696816,2105.7,2105.2,1.579]
[1773391575462,1.18731003,2105.6,2105.2,1.579]
[1773391575760,1.66491551,2105.6,2105.2,1.579]
[1773391576754,1.18731003,2105.6,2105.2,1.579]
[1773391576952,0.002,2105.5,2105.2,1.579]
[1773391578634,0.47760548,2104.4,2102.6,0.81171518]
[1773391578835,0.54314148,2104.0,2102.7,7.56336408]
[1773391579057,0.47760548,2104.0,2102.8,0.001]
[1773391579260,2.00235655,2104.2,2102.8,0.001]
[1773391579261,2.26331456,2103.5,2102.8,0.001]
[1773391579462,2.8291432,2103.4,2102.9,5.98536408]
[1773391579631,2.26331456,2103.7,2102.9,2.43201744]
[1773391579829,2.82871299,2103.6,2103.0,5.98536408]
[1773391580055,2.26331456,2103.7,2103.0,5.98536408]
[1773391580056,2.82871299,2103.5,2103.0,5.98536408]
[1773391580358,2.26331456,2103.8,2103.1,0.001]
[1773391580543,2.82570923,2103.7,2103.1,0.001]
[1773391580738,2.82570923,2103.6,2103.1,0.001]
[1773391580940,2.82570923,2103.5,2103.2,5.48586408]
[1773391581135,4.75330354,2103.9,2103.3,7.06386408]
[1773391581136,2.26331456,2103.9,2103.3,7.06386408]
[1773391581476,5.06076116,2104.1,2103.3,2.76759721]
[1773391581477,2.82292637,2103.8,2103.3,2.76759721]
[1773391581637,3.92908203,2104.1,2103.4,0.001]
[1773391581961,2.82255078,2104.0,2103.4,5.48586408]
[1773391582265,2.82255078,2103.9,2103.4,5.48486408]
[1773391582467,2.82255078,2103.8,2103.5,0.001]
[1773391582678,1.66576217,2104.1,2103.5,0.001]
[1773391582835,2.82072009,2104.0,2103.6,5.48586408]
[1773391583038,2.82072009,2103.9,2103.4,5.48486408]
[1773391583233,0.47760548,2104.1,2103.4,5.48586408]
[1773391583541,2.81920655,2104.1,2103.5,0.92737943]
[1773391583877,4.06357597,2104.4,2103.5,0.92737943]
[1773391584051,2.81907259,2104.3,2103.6,5.48586408]
[1773391584366,4.06357597,2104.4,2103.6,5.48486408]
[1773391584367,2.81907259,2104.2,2103.6,5.48486408]
[1773391584549,2.81907259,2104.1,2103.7,0.001]
[1773391584746,0.61225657,2104.3,2103.7,0.001]
[1773391585098,2.00235655,2104.0,2103.3,1.579]
[1773391585362,2.00235655,2104.0,2103.4,5.94408463]
[1773391585363,1.18838237,2103.7,2103.4,5.94408463]
[1773391585551,1.80062305,2103.8,2103.4,1.58]
[1773391585867,1.80062305,2103.8,2103.4,5.94408463]
[1773391586941,1.80045341,2104.1,2103.4,5.94408463]
[1773391587268,2.8152951,2104.0,2103.4,5.94408463]
[1773391588274,0.61225657,2103.8,2103.5,1.581]
[1773391588445,0.61225657,2103.8,2102.9,1.80736195]
[1773391588873,1.18824353,2104.0,2103.0,2.00235655]
[1773391589045,1.18824353,2104.0,2103.1,0.6185286]
[1773391589758,1.18824353,2104.0,2103.2,1.582]
[1773391590162,5.36496901,2104.1,2103.4,0.001]
[1773391590357,2.81191548,2104.0,2103.4,0.001]
[1773391590749,0.61225657,2103.9,2103.4,0.001]
[1773391591186,0.05941064,2104.0,2103.4,0.001]
[1773391591690,0.67166721,2104.0,2103.4,0.001]
[1773391591848,0.61225657,2104.0,2103.2,1.582]
[1773391592179,1.1882694,2103.9,2103.1,0.001]
[1773391593290,1.1882694,2103.9,2103.2,1.582]
[1773391593788,1.80051276,2104.0,2103.2,1.582]
[1773391594159,0.61225657,2104.0,2103.2,3.38916219]
[1773391594370,1.80047513,2104.0,2103.2,3.38916219]
[1773391594574,7.56402376,2104.1,2103.2,3.38916219]
[1773391594575,0.002,2104.2,2103.4,2.62088515]
[1773391594762,0.002,2104.2,2103.6,0.6185286]
[1773391594963,0.002,2104.4,2103.6,0.6185286]
[1773391594964,0.002,2104.4,2103.7,0.6185286]
[1773391595267,0.002,2104.4,2103.8,0.6185286]
[1773391595467,0.002,2104.4,2103.9,2.2015286]
[1773391596069,0.002,2104.4,2103.9,3.38977903]
[1773391596484,6.25038009,2104.7,2104.0,0.6185286]
[1773391596788,0.002,2104.7,2104.0,0.6185286]
[1773391597800,0.002,2104.7,2104.0,1.54490803]
[1773391597998,0.002,2104.7,2104.1,0.6185286]
[1773391598201,0.0593796,2105.1,2104.3,0.6185286]
[1773391598380,4.67247625,2105.3,2104.3,0.6185286]
[1773391598586,2.81336164,2105.2,2104.4,1.54490803]
[1773391598786,2.81336164,2105.2,2104.5,0.6185286]
[1773391599005,1.18748679,2105.3,2104.6,2.2015286]
[1773391599204,2.81398378,2105.2,2104.6,1.583]
[1773391599515,2.81398378,2105.2,2104.6,2.2015286]
[1773391599816,1.18937296,2105.5,2104.8,2.00535528]
[1773391599985,2.81398378,2105.4,2104.7,0.6185286]
[1773391600188,2.81398378,2105.4,2104.7,1.80634488]
[1773391600388,1.18939401,2105.5,2104.7,0.6185286]
[1773391601010,1.1893744,2105.5,2104.7,1.80634535]
[1773391601512,0.002,2105.5,2104.8,0.6185286]
[1773391601694,4.00493194,2105.5,2104.8,0.6185286]
[1773391601991,1.18939874,2105.5,2104.8,0.6185286]
[1773391602717,2.00535528,2105.1,2103.7,0.6185286]
[1773391603016,0.61225657,2104.9,2103.8,1.584]
[1773391603196,0.67164463,2104.8,2103.8,3.58935528]
[1773391603384,2.26331456,2105.2,2104.1,2.62388388]
[1773391603385,2.8173226,2104.9,2104.1,2.62388388]
[1773391603584,0.0593796,2105.1,2104.1,2.62388388]
[1773391603795,2.87823246,2105.1,2104.1,2.62388388]
[1773391604086,0.64160801,2105.0,2104.1,0.6185286]
[1773391604286,1.1877613,2104.8,2104.1,0.6185286]
[1773391605119,1.1877613,2104.8,2104.2,1.583]
[1773391605824,1.18774296,2104.9,2104.2,1.583]
[1773391605999,1.82930179,2105.0,2104.2,4.22175941]
[1773391606195,0.64160801,2104.8,2103.4,4.991]
[1773391606425,0.64160801,2104.8,2101.4,0.52906065]
[1773391606426,0.64160801,2103.4,2101.4,0.52906065]
[1773391606639,0.64160801,2101.8,2101.4,0.52906065]
[1773391606837,0.64160801,2101.8,2101.0,1.575]
[1773391607124,0.64160801,2101.8,2101.1,0.4752]
[1773391607326,0.64160801,2101.8,2101.1,0.4762]
[1773391607626,2.82221186,2102.1,2101.2,0.001]
[1773391607807,2.82221186,2102.1,2101.3,0.001]
[1773391608004,0.64160801,2102.2,2101.2,0.001]
[1773391608407,4.65028216,2102.2,2101.2,1.1907963]
[1773391608737,4.0919843,2102.6,2101.3,2.48155528]
[1773391608921,2.81912091,2102.5,2101.3,2.48155528]
[1773391609127,0.64160801,2102.6,2101.6,2.00535528]
[1773391609313,0.64160801,2102.6,2101.7,1.569]
[1773391609518,3.45849874,2102.6,2101.7,1.569]
[1773391609918,2.81689073,2102.5,2101.8,0.4762]
[1773391610120,1.83061994,2102.6,2101.8,0.4762]
[1773391610311,3.45675436,2102.5,2101.9,0.001]
[1773391610626,0.64160801,2102.5,2101.9,0.001]
[1773391611127,1.18898276,2102.7,2102.0,0.4762]
[1773391611434,1.18898276,2102.7,2101.7,2.75849472]
[1773391611435,1.1889315,2102.8,2101.8,0.4762]
[1773391611634,2.81300895,2102.7,2101.8,0.4762]
[1773391611807,1.1889315,2102.8,2101.8,0.4762]
[1773391612006,1.1889315,2102.8,2101.8,0.4752]
[1773391612314,1.1889315,2102.8,2101.9,1.577]
[1773391612315,0.89201119,2102.6,2101.9,1.577]
[1773391612519,0.89201119,2102.4,2101.9,1.577]
[1773391613116,0.89201119,2102.4,2101.9,1.576]
[1773391613316,0.89201119,2102.4,2101.9,2.0522]
[1773391614738,0.89201119,2102.2,2101.6,1.58]
[1773391615817,0.89201119,2102.2,2101.7,0.4762]
[1773391616609,2.08125391,2102.2,2101.7,0.4762]
[1773391616933,2.08125391,2102.2,2101.8,0.001]
[1773391617311,2.08125391,2102.2,2101.7,0.4752]
[1773391617312,0.89201119,2102.1,2100.9,1.1899662]
[1773391617538,0.89201119,2102.0,2101.0,3.58835528]
[1773391617730,0.89201119,2102.0,2101.1,2.025]
[1773391618043,0.89201119,2102.0,2101.5,0.001]
[1773391618941,4.75892132,2102.4,2101.5,0.001]
[1773391618942,2.08316486,2102.4,2101.5,0.001]
[1773391619442,2.14262071,2102.4,2101.5,0.001]
[1773391619738,0.89201119,2102.3,2101.6,1.584]
[1773391620316,1.25060952,2102.4,2101.6,1.584]
[1773391620317,0.06145585,2102.4,2101.6,1.584]
[1773391620644,1.19112012,2102.4,2101.6,1.584]
[1773391620830,0.05945868,2102.3,2101.7,1.585]
[1773391621025,0.89201119,2102.3,2101.7,1.585]
[1773391622033,0.002,2102.4,2101.7,1.585]
[1773391622431,0.002,2102.4,2101.8,2.00535528]
[1773391622620,0.002,2102.6,2101.8,2.84769565]
[1773391623134,0.002,2102.6,2101.9,2.03174043]
[1773391627049,0.002,2102.6,2101.9,1.18939627]
[1773391627272,0.002,2102.6,2102.0,1.586]
[1773391627567,0.89401119,2102.6,2102.1,1.586]
[1773391627772,0.95146422,2102.5,2102.1,1.586]
[1773391628073,0.95146422,2102.5,2101.5,1.19062144]
[1773391628373,2.08112838,2102.4,2101.5,0.001]
[1773391628865,4.81592182,2102.5,2101.7,2.00535528]
[1773391628866,1.18909977,2102.5,2101.7,2.00535528]
[1773391629043,1.2485528,2102.5,2101.7,2.00535528]
[1773391629238,0.89201119,2102.4,2101.8,1.585]
[1773391629438,0.89201119,2102.2,2101.5,0.001]
[1773391630253,0.89201119,2102.0,2101.5,0.001]
[1773391630665,0.89201119,2102.0,2101.6,1.585]
[1773391631541,0.89201119,2102.0,2101.3,0.001]
[1773391631888,0.89201119,2102.0,2099.9,0.14948499]
[1773391631889,0.89201119,2100.7,2099.2,1.68273586]
[1773391632040,0.89201119,2100.2,2099.3,1.5983]
[1773391632241,0.89201119,2100.0,2099.3,1.5983]
[1773391632850,0.89201119,2099.9,2099.3,1.5983]
[1773391633056,0.89201119,2099.8,2099.2,0.1672055]
[1773391634256,2.08265747,2099.7,2099.2,0.1672055]
[1773391634457,2.08265747,2099.7,2099.2,1.7512055]
[1773391634772,0.89201119,2100.1,2099.2,4.94749059]
[1773391634978,0.89201119,2100.1,2099.2,4.94748772]
[1773391635185,3.70345734,2100.1,2099.2,4.94748772]
[1773391635339,3.70345734,2100.1,2099.2,2.94212934]
[1773391635540,0.89201119,2100.1,2099.2,2.94212934]
[1773391635844,1.19036726,2100.2,2099.3,2.00535528]
[1773391635845,2.81319597,2100.2,2099.3,2.00535528]
[1773391636538,2.81319597,2100.2,2099.3,3.19619376]
[1773391636745,4.00358925,2100.2,2099.2,1.35809584]
[1773391636961,1.19026144,2100.4,2099.3,3.58935528]
[1773391637153,2.81628556,2100.3,2099.3,3.58935528]
[1773391637674,0.89201119,2100.5,2099.3,3.58935528]
[1773391637845,4.89625201,2100.5,2099.3,3.58935528]
[1773391638167,2.81401908,2100.4,2099.3,3.58935528]
[1773391638361,1.19013723,2100.6,2099.6,2.00535528]
[1773391638547,2.81200471,2100.5,2099.7,1.19064628]
[1773391638748,0.89201119,2100.7,2099.7,1.19064628]
[1773391639377,3.70389544,2100.7,2099.7,1.19064628]
[1773391639743,0.89201119,2100.7,2099.7,1.19064628]
[1773391640165,3.70305084,2100.7,2099.7,1.19064628]
[1773391640573,0.89201119,2100.6,2097.9,5.6084335]
[1773391640751,0.89201119,2100.6,2098.5,0.80093301]
[1773391640752,0.77803221,2099.8,2098.5,0.80093301]
[1773391641075,2.81103965,2099.9,2099.0,2.00535528]
[1773391641370,0.77803221,2100.2,2099.1,1.585]
[1773391641875,0.77803221,2100.2,2099.1,1.7522055]
[1773391642071,0.77803221,2100.2,2099.1,1.585]
[1773391642243,3.58761709,2100.2,2099.1,1.585]
[1773391642446,0.77803221,2100.0,2098.8,2.00535528]
[1773391642661,1.96856509,2099.9,2098.9,1.586]
[1773391643996,0.77803221,2099.9,2098.9,1.7532055]
[1773391644489,0.23328899,2100.3,2098.9,1.7532055]
[1773391644490,1.19041265,2100.2,2099.1,0.1672055]
[1773391644689,1.19041265,2100.2,2099.2,1.19092987]
[1773391644690,2.80662848,2100.1,2099.2,1.19092987]
[1773391644869,2.86614945,2100.1,2099.2,1.19092987]
[1773391645195,0.05952097,2100.1,2099.2,3.19628515]
[1773391645385,2.86549084,2100.2,2099.2,3.19628515]
[1773391645585,2.86549084,2100.2,2099.2,3.36349065]
[1773391645766,2.86549084,2100.2,2099.2,3.19628515]
[1773391646177,2.86549084,2100.2,2099.3,0.1672055]
[1773391647082,1.24989203,2100.2,2099.3,0.1672055]
[1773391647286,0.77803221,2100.0,2099.4,1.586]
[1773391648196,0.05952664,2099.9,2099.4,1.586]
[1773391649390,0.77803221,2100.0,2099.4,1.586]
[1773391649595,0.05952664,2099.9,2099.4,1.586]
[1773391650095,1.96855212,2100.0,2099.5,1.585]
[1773391650489,0.77803221,2100.0,2099.5,1.585]
[1773391650687,0.05952097,2100.1,2099.6,0.1672055]
[1773391650987,1.24989569,2100.2,2099.5,1.585]
[1773391651297,2.0279279,2100.2,2099.6,1.585]
[1773391651501,0.77803221,2100.1,2099.1,0.001]
[1773391651678,0.77803221,2099.9,2099.2,1.584]
[1773391652076,0.77803221,2099.9,2099.2,1.7512055]
[1773391652803,0.05952097,2100.1,2099.2,1.584]
[1773391652978,1.96840976,2100.2,2099.2,1.584]
[1773391653173,1.19047619,2100.0,2099.2,2.7748837]
[1773391653380,0.05952664,2099.9,2099.2,2.7748837]
[1773391653580,0.05952664,2099.9,2099.3,0.1672055]
[1773391653979,0.0595238,2100.0,2099.4,0.1672055]
[1773391654180,0.0595238,2100.0,2099.2,2.7748837]
[1773391655103,0.0595238,2100.0,2099.4,0.1672055]
[1773391655312,2.87101996,2100.1,2099.2,2.7748837]
[1773391655484,2.87101996,2100.1,2099.3,0.1672055]
[1773391655685,4.06144178,2100.1,2099.2,2.7748837]
[1773391655890,2.81149899,2100.0,2099.2,2.7748837]
[1773391656084,2.81149899,2100.0,2099.4,0.1672055]
[1773391656289,1.19042753,2100.1,2099.2,2.7748837]
[1773391656485,2.81821469,2100.0,2099.4,0.1672055]
[1773391656902,0.05951814,2100.2,2099.4,2.00535528]
[1773391657188,3.50131382,2100.4,2099.6,1.19070299]
[1773391657401,0.77803221,2100.3,2099.2,3.57580615]
[1773391657604,0.05951814,2100.2,2099.2,3.57582002]
[1773391658106,0.14948499,2100.0,2097.6,0.81745517]
[1773391658306,3.02957576,2099.2,2098.3,1.58]
[1773391658506,0.77803221,2099.2,2098.4,1.564]
[1773391658696,2.25154355,2099.3,2098.4,3.56935528]
[1773391659016,4.87521023,2099.4,2098.4,3.56935528]
[1773391659215,2.25154355,2099.3,2098.5,1.19132713]
[1773391659417,3.44241973,2099.3,2098.5,1.19132713]
[1773391659633,3.44241973,2099.3,2098.6,1.565]
[1773391659793,4.22045194,2099.3,2098.7,1.565]
[1773391659999,0.77803221,2099.0,2097.9,1.19163139]
[1773391660199,0.77803221,2099.0,2097.8,0.80093301]
[1773391660200,2.25154355,2098.6,2098.0,1.565]
[1773391660823,2.25154355,2098.6,2098.1,0.001]
[1773391661035,3.02957576,2098.5,2098.2,1.566]
[1773391661196,1.56599975,2098.3,2097.6,2.00928723]
[1773391661509,1.56599975,2098.3,2097.8,0.001]
[1773391661816,3.8175433,2098.3,2097.9,1.567]
[1773391662196,2.75749622,2098.3,2097.7,2.01737287]
[1773391662388,2.75744182,2098.3,2098.0,1.568]
[1773391662830,1.56599975,2098.3,2098.0,1.568]
[1773391663632,1.56599975,2098.3,2098.1,1.569]
[1773391663800,1.56599975,2098.3,2098.2,1.57]
[1773391664395,2.75748891,2098.3,2097.6,0.81745517]
[1773391664594,0.77628338,2098.2,2097.6,0.81745517]
[1773391664901,0.77628338,2098.2,2097.7,1.57]
[1773391665436,1.96778262,2098.2,2097.7,1.57]
[1773391665644,1.96778262,2098.2,2097.8,1.571]
[1773391665843,1.96778262,2098.2,2097.9,1.571]
[1773391666337,1.19149924,2098.2,2097.9,1.571]
[1773391666716,1.56599975,2098.3,2097.9,1.571]
[1773391666922,1.56599975,2098.3,2097.7,2.01737287]
[1773391667109,1.19136658,2098.5,2098.0,1.572]
[1773391667752,1.96764996,2098.5,2098.1,1.572]
[1773391668121,0.77628338,2098.4,2098.2,1.573]
[1773391668327,0.77628338,2098.4,2097.6,0.81745517]
[1773391668328,1.04737182,2098.2,2097.6,0.81745517]
[1773391668548,0.77628338,2098.1,2097.6,0.81745517]
[1773391668725,3.60405099,2098.1,2097.6,0.81745517]
[1773391669324,1.19161105,2098.0,2097.6,0.81745517]
[1773391669525,1.19161105,2098.0,2097.7,1.573]
[1773391670025,2.23890073,2098.2,2097.7,1.573]
[1773391670225,2.82657869,2098.1,2097.7,1.573]
[1773391670459,2.82657869,2098.1,2097.8,0.001]
[1773391670958,1.04737182,2098.2,2098.0,0.001]
[1773391671128,1.04737182,2098.2,2097.7,1.573]
[1773391671323,1.04737182,2098.2,2097.7,3.53225952]
[1773391671545,1.19124102,2098.7,2098.1,0.001]
[1773391671733,2.82528015,2098.6,2097.7,3.53225952]
[1773391671931,2.82528015,2098.6,2097.9,2.01737287]
[1773391672156,0.05956351,2098.6,2098.0,0.001]
[1773391672355,2.88478988,2098.7,2097.7,2.76476251]
[1773391672562,2.88478988,2098.7,2097.9,0.001]
[1773391672779,2.88478988,2098.7,2097.8,0.76749701]
[1773391672977,2.8252292,2098.7,2098.2,0.001]
[1773391673170,0.001,2098.1,2097.8,0.76859701]
[1773391673487,1.25083388,2098.6,2097.9,1.574]
[1773391673671,1.25083388,2098.6,2098.0,0.001]
[1773391673860,1.25083388,2098.6,2097.8,0.0011]
[1773391674051,1.25083388,2098.6,2097.9,1.575]
[1773391674252,1.25083388,2098.6,2098.0,1.575]
[1773391674253,0.75818141,2098.5,2098.0,1.575]
[1773391674555,0.05956919,2098.4,2098.0,1.575]
[1773391674964,0.8177506,2098.4,2097.8,0.0011]
[1773391675483,1.19144069,2098.3,2097.8,0.0011]
[1773391675778,2.88521409,2098.2,2097.8,0.0011]
[1773391676182,2.88521409,2098.2,2097.8,0.0021]
[1773391676364,2.88521409,2098.2,2097.9,1.574]
[1773391676549,2.88521409,2098.2,2098.0,1.574]
[1773391676780,0.05957487,2098.2,2098.0,1.574]
[1773391677090,3.64403845,2098.2,2097.8,0.0011]
[1773391677257,0.81775628,2098.2,2097.8,0.0011]
[1773391677456,1.19155426,2098.1,2097.8,0.0011]
[1773391678677,1.19155426,2098.1,2097.9,1.574]
[1773391678884,0.44114693,2098.0,2097.8,0.0011]
[1773391679081,0.44114693,2098.0,2097.8,0.0021]
[1773391679290,0.44114693,2098.0,2097.8,0.0011]
[1773391679482,0.44114693,2098.0,2097.9,0.001]
[1773391680282,0.05956919,2098.4,2097.8,0.0011]
[1773391680485,0.06986575,2098.4,2097.9,1.573]
[1773391680681,1.19129468,2098.6,2097.9,1.573]
[1773391680880,2.83737447,2098.5,2097.9,1.573]
[1773391681290,2.82707791,2098.5,2097.9,1.573]
[1773391681598,1.25077573,2098.7,2097.9,3.53213661]
[1773391681900,0.01029656,2098.7,2098.0,0.76749701]
[1773391682093,1.19118532,2098.8,2098.1,2.78486988]
[1773391682288,1.20148188,2098.8,2098.1,2.78486988]
[1773391682495,1.26103972,2098.8,2098.1,2.78486988]
[1773391685400,2.83571223,2098.7,2098.1,2.78486988]
[1773391685705,0.23418608,2099.0,2098.4,2.01737287]
[1773391685706,0.05955216,2099.0,2098.4,2.01737287]
[1773391685879,3.44228703,2099.6,2098.7,2.01737287]
[1773391686070,2.89381248,2099.5,2098.7,2.01737287]
[1773391686295,2.83475344,2099.4,2098.7,2.01737287]
[1773391686508,1.19077078,2099.5,2098.7,3.20853321]
[1773391686806,1.19074607,2099.6,2098.8,0.76749701]
[1773391687103,0.01029656,2099.5,2098.9,1.57]
[1773391687305,1.19072064,2099.6,2098.9,1.57]
[1773391688009,0.0693556,2099.7,2098.9,1.57]
[1773391688195,2.8380162,2099.6,2098.9,1.57]
[1773391688508,1.2497124,2099.7,2098.9,1.57]
[1773391688678,0.01029656,2099.6,2098.9,1.57]
[1773391689010,0.01029656,2099.6,2098.9,2.76105809]
[1773391690294,0.01029656,2099.5,2099.0,0.76749701]
[1773391690606,1.50745508,2099.8,2099.0,0.76749701]
[1773391690607,1.50744651,2099.8,2099.0,1.95852943]
[1773391690782,1.50744651,2099.8,2099.0,3.9759023]
[1773391690783,0.01029656,2099.7,2099.0,3.9759023]
[1773391691185,0.01029656,2099.7,2099.0,1.95852943]
[1773391692690,0.01029656,2099.6,2099.0,0.76749701]
[1773391692890,0.01029656,2099.6,2099.0,1.95851345]
[1773391693298,0.01029656,2099.5,2099.0,1.95851345]
[1773391693499,0.01029656,2099.7,2099.0,1.95851345]
[1773391694097,0.01029656,2099.6,2099.0,1.95851345]
[1773391694301,0.01029656,2099.7,2099.0,1.95851345]
[1773391695103,1.20095461,2099.7,2099.0,0.76749701]
[1773391695287,0.01029656,2099.6,2099.1,1.567]
[1773391696997,0.31681636,2099.8,2099.1,5.54282157]
[1773391697199,1.50741525,2099.8,2099.1,5.54282157]
[1773391697391,0.76847797,2099.7,2099.2,1.567]
[1773391697588,0.82753701,2099.7,2099.3,1.567]
[1773391697902,0.01029656,2099.6,2099.3,1.567]
[1773391698407,0.01029656,2099.5,2099.3,1.567]
[1773391698603,0.01029656,2099.5,2099.4,1.566]
[1773391698604,0.75818141,2099.5,2099.4,1.566]
[1773391698805,0.76847797,2099.4,2098.5,1.9587901]